bitfinex-derivatives/quotes_BTCF0:USTF0_20250728
["timestamp","ask_amount","ask_price","bid_price","bid_amount"]
[1753717635804,0.66509585,118510.0,118500.0,1.2488344]
[1753717636008,1.09085585,118510.0,118500.0,1.2488344]
[1753717636509,1.09085585,118510.0,118500.0,1.2876844]
[1753717636906,0.65880153,118510.0,118500.0,1.2876844]
[1753717637409,1.16402007,118510.0,118500.0,1.2876844]
[1753717637610,1.16602007,118510.0,118500.0,1.2876844]
[1753717637801,1.16802007,118510.0,118500.0,1.2876844]
[1753717638008,0.66280153,118510.0,118500.0,1.2876844]
[1753717638313,0.66280153,118510.0,118500.0,1.35360868]
[1753717639410,1.16802007,118510.0,118500.0,1.35360868]
[1753717639705,1.16802007,118510.0,118500.0,1.31475868]
[1753717639910,1.16802007,118510.0,118500.0,1.10062868]
[1753717640599,1.16802007,118510.0,118500.0,1.12859868]
[1753717642108,1.16802007,118510.0,118500.0,0.93054868]
[1753717642709,1.16802007,118510.0,118500.0,1.09786868]
[1753717642904,1.66802007,118510.0,118500.0,1.09786868]
[1753717643613,1.16280153,118510.0,118500.0,1.12583868]
[1753717643813,1.66802007,118510.0,118500.0,1.12583868]
[1753717645312,1.08508153,118510.0,118500.0,1.19068868]
[1753717645512,0.65873153,118510.0,118500.0,1.35800868]
[1753717646212,1.16395007,118510.0,118500.0,1.35800868]
[1753717647113,0.65873153,118510.0,118500.0,1.35800868]
[1753717647313,0.64306,118510.0,118500.0,1.33747848]
[1753717647508,0.65872802,118510.0,118500.0,1.35804132]
[1753717648515,1.16394656,118510.0,118500.0,1.35804132]
[1753717648711,1.16394656,118510.0,118500.0,1.15041712]
[1753717649013,1.16394656,118510.0,118500.0,1.09790132]
[1753717649713,1.16394656,118510.0,118500.0,1.12587132]
[1753717649915,1.16394656,118510.0,118500.0,0.93058132]
[1753717650313,1.16394656,118510.0,118500.0,1.09790132]
[1753717650510,1.16394656,118510.0,118500.0,1.12587132]
[1753717656220,1.16394656,118510.0,118500.0,1.31919132]
[1753717656822,1.0899107,118510.0,118500.0,1.31919132]
[1753717672031,1.0899107,118510.0,118500.0,1.35804132]
[1753717675737,1.0899107,118510.0,118500.0,0.93058132]
[1753717675938,1.0899107,118510.0,118500.0,1.09358132]
[1753717676135,1.0899107,118510.0,118500.0,0.08648712]
[1753717677032,1.5899107,118510.0,118500.0,0.08648712]
[1753717677533,1.5899107,118510.0,118500.0,0.25526132]
[1753717677739,1.5899107,118510.0,118500.0,0.09518132]
[1753717678041,1.5899107,118510.0,118500.0,0.25818132]
[1753717678341,1.5899107,118510.0,118500.0,0.36441132]
[1753717678536,1.5899107,118510.0,118500.0,0.42289132]
[1753717679241,1.5899107,118510.0,118500.0,0.49133498]
[1753717679435,1.5899107,118510.0,118500.0,0.39615366]
[1753717679640,1.5899107,118510.0,118500.0,0.36523366]
[1753717680337,1.5899107,118510.0,118500.0,0.53400786]
[1753717680835,1.5899107,118510.0,118500.0,0.36481366]
[1753717681041,1.5899107,118510.0,118500.0,0.53358786]
[1753717681448,1.5899107,118510.0,118500.0,0.52863786]
[1753717682043,1.5899107,118510.0,118500.0,0.35986366]
[1753717682340,1.7586787,118510.0,118490.0,0.0301443]
[1753717682645,1.74840688,118500.0,118490.0,0.0301443]
[1753717682840,0.3608327,118480.0,118470.0,1.00339042]
[1753717683143,1.07347538,118480.0,118470.0,1.11244263]
[1753717683343,1.08962362,118480.0,118470.0,1.15129263]
[1753717683541,1.08962362,118480.0,118470.0,1.31429263]
[1753717685043,1.08962362,118480.0,118470.0,1.27208923]
[1753717685441,1.08962362,118480.0,118470.0,1.27308923]
[1753717685846,1.08962362,118480.0,118470.0,1.23088663]
[1753717686042,1.08962362,118480.0,118470.0,0.98102883]
[1753717686534,1.08962362,118480.0,118470.0,0.41233881]
[1753717686739,1.08962362,118480.0,118470.0,1.08729881]
[1753717687145,1.08962362,118480.0,118470.0,1.25611571]
[1753717687546,1.08962362,118480.0,118470.0,1.25355571]
[1753717687750,1.08962362,118480.0,118470.0,1.29240571]
[1753717689054,1.08962362,118480.0,118470.0,1.27862571]
[1753717689242,1.08962362,118480.0,118470.0,1.28062571]
[1753717690951,1.08962362,118480.0,118470.0,1.28047571]
[1753717691552,1.08962362,118480.0,118470.0,1.27259571]
[1753717692453,1.08962362,118480.0,118470.0,1.27173571]
[1753717693251,1.08962362,118480.0,118470.0,1.27151571]
[1753717693553,0.65844094,118480.0,118470.0,1.27151571]
[1753717693852,1.08962362,118480.0,118470.0,1.27151571]
[1753717695448,1.08962362,118480.0,118470.0,1.26933571]
[1753717695950,1.08962362,118480.0,118470.0,1.26916571]
[1753717696648,1.08962362,118480.0,118470.0,1.26339571]
[1753717697941,1.08962362,118480.0,118470.0,1.22359571]
[1753717698343,1.08962362,118480.0,118470.0,1.22344571]
[1753717699351,1.08962362,118480.0,118470.0,1.26229571]
[1753717699950,1.08962362,118480.0,118470.0,1.26096571]
[1753717701350,1.08962362,118480.0,118470.0,1.25425571]
[1753717703154,1.08962362,118480.0,118470.0,1.25385571]
[1753717704052,1.08962362,118480.0,118470.0,1.22877571]
[1753717706047,1.08962362,118480.0,118470.0,1.21579571]
[1753717707252,1.08962362,118480.0,118470.0,1.21567571]
[1753717708155,1.08962362,118480.0,118470.0,1.21261571]
[1753717709156,1.08962362,118480.0,118470.0,1.20726571]
[1753717710358,1.08962362,118480.0,118470.0,1.20713571]
[1753717710758,1.08962362,118480.0,118470.0,1.20408571]
[1753717711158,1.08962362,118480.0,118470.0,1.20336571]
[1753717711459,1.08962362,118480.0,118470.0,1.20312571]
[1753717711656,0.18495094,118480.0,118470.0,1.20312571]
[1753717711854,0.06392824,118480.0,118470.0,1.63148839]
[1753717712052,0.01614824,118480.0,118470.0,1.63148839]
[1753717712559,0.01614824,118480.0,118470.0,1.62689839]
[1753717713561,0.01614824,118480.0,118470.0,1.67222715]
[1753717716264,0.01614824,118480.0,118470.0,1.24104447]
[1753717716460,0.01614824,118480.0,118470.0,1.67222715]
[1753717719170,0.6807399,118490.0,118480.0,0.3096636]
[1753717719468,0.65578447,118490.0,118480.0,0.4694136]
[1753717721271,1.08696715,118490.0,118480.0,0.4694136]
[1753717725071,1.08696715,118490.0,118480.0,0.8435236]
[1753717725072,1.12916685,118490.0,118480.0,0.8435236]
[1753717725372,1.21356765,118490.0,118480.0,0.8435236]
[1753717728673,1.21356765,118490.0,118480.0,0.9644236]
[1753717729174,1.2135643,118490.0,118480.0,0.9644236]
[1753717731576,1.2135643,118490.0,118480.0,0.8435236]
[1753717732571,1.2135643,118490.0,118480.0,0.1688036]
[1753717732779,0.6411635,118480.0,118470.0,0.32006221]
[1753717732979,1.52077068,118480.0,118470.0,0.98676221]
[1753717733174,1.52077068,118480.0,118470.0,0.31212221]
[1753717733367,1.089588,118480.0,118470.0,0.31212221]
[1753717733772,1.2161972,118480.0,118460.0,0.8043523]
[1753717733968,1.07236048,118470.0,118460.0,1.1146843]
[1753717734172,1.0896023,118470.0,118460.0,1.1146843]
[1753717734778,1.0896023,118470.0,118460.0,0.4400443]
[1753717734978,1.07236048,118470.0,118460.0,1.18355855]
[1753717735384,1.07236048,118470.0,118460.0,1.22240855]
[1753717735786,1.07236048,118470.0,118460.0,1.22440855]
[1753717736476,1.07236048,118470.0,118460.0,1.22740855]
[1753717736677,1.07236048,118470.0,118460.0,1.18520175]
[1753717736877,1.08980048,118470.0,118460.0,0.33021625]
[1753717737283,1.07236048,118470.0,118460.0,0.83602425]
[1753717737473,1.08980099,118470.0,118460.0,0.86162411]
[1753717738285,1.08980099,118470.0,118460.0,1.03045621]
[1753717739987,1.08980099,118470.0,118460.0,0.26830621]
[1753717740285,1.08980099,118470.0,118460.0,0.35581621]
[1753717740480,1.08980099,118470.0,118460.0,0.07387425]
[1753717740685,1.76444099,118470.0,118460.0,0.005]
[1753717741085,2.26444099,118470.0,118460.0,0.005]
[1753717742388,2.26444099,118470.0,118460.0,0.1738321]
[1753717742783,2.26444099,118470.0,118460.0,0.005]
[1753717742985,0.5694864,118450.0,118440.0,0.27922578]
[1753717743182,1.07238908,118450.0,118440.0,0.27922578]
[1753717743587,1.07238908,118450.0,118440.0,0.43406941]
[1753717744489,1.57238908,118450.0,118440.0,0.43406941]
[1753717744693,1.57238908,118450.0,118440.0,0.32360913]
[1753717745386,2.24706908,118450.0,118440.0,0.23918233]
[1753717745581,2.24706908,118450.0,118440.0,0.07033363]
[1753717745582,2.67825176,118450.0,118440.0,0.07033363]
[1753717745888,2.69741129,118450.0,118440.0,0.007]
[1753717746189,2.26622861,118450.0,118440.0,0.007]
[1753717746491,2.24706908,118450.0,118440.0,0.003]
[1753717746690,2.69640608,118450.0,118440.0,0.004]
[1753717747586,2.86526208,118450.0,118440.0,0.004]
[1753717748683,0.6412355,118430.0,118420.0,0.23551265]
[1753717748883,0.3612498,118420.0,118410.0,0.54534864]
[1753717749190,1.07243248,118420.0,118410.0,0.54534864]
[1753717749487,1.07243248,118420.0,118410.0,0.4427771]
[1753717749688,1.03021638,118420.0,118400.0,1.09773901]
[1753717749889,1.07244708,118410.0,118400.0,0.50313854]
[1753717750594,1.07244708,118410.0,118400.0,0.4427927]
[1753717751294,1.07344708,118410.0,118400.0,0.47507038]
[1753717751594,1.07344708,118410.0,118400.0,0.4497927]
[1753717751794,1.07344708,118410.0,118400.0,0.1759062]
[1753717751993,1.07344708,118410.0,118400.0,0.33455508]
[1753717752288,1.74816708,118410.0,118400.0,0.07548888]
[1753717752593,1.74816708,118410.0,118400.0,0.08048888]
[1753717752793,1.74716708,118410.0,118400.0,0.07348888]
[1753717752997,2.24716708,118410.0,118400.0,0.24340748]
[1753717753191,2.24716708,118410.0,118400.0,0.06948888]
[1753717753393,2.24816708,118410.0,118400.0,0.07148888]
[1753717754297,2.24816708,118410.0,118400.0,0.24040758]
[1753717756695,2.26625787,118410.0,118400.0,0.24040758]
[1753717758991,2.26625787,118410.0,118400.0,0.07148888]
[1753717760092,2.26625787,118410.0,118400.0,0.24040778]
[1753717760794,2.26625787,118410.0,118400.0,0.07148888]
[1753717761988,2.26625787,118410.0,118400.0,0.24040718]
[1753717762486,2.26625787,118410.0,118400.0,0.07148888]
[1753717762692,2.26625787,118410.0,118400.0,0.24040688]
[1753717762991,2.26625787,118410.0,118400.0,0.32722688]
[1753717763797,2.26625787,118410.0,118400.0,0.07148888]
[1753717763999,2.26625787,118410.0,118400.0,0.003]
[1753717771907,2.33299325,118410.0,118390.0,0.06805472]
[1753717772097,0.86236536,118400.0,118390.0,0.04681]
[1753717772296,0.74488797,118400.0,118390.0,0.04681]
[1753717773006,0.74488797,118400.0,118390.0,0.05081]
[1753717773197,0.74488797,118400.0,118390.0,0.05181]
[1753717773402,1.24488797,118400.0,118390.0,0.2207419]
[1753717774005,1.24488797,118400.0,118390.0,0.4616419]
[1753717774398,0.81370529,118400.0,118390.0,0.36344]
[1753717774596,0.81370529,118400.0,118390.0,0.4616418]
[1753717775394,0.81470529,118400.0,118390.0,0.5303718]
[1753717776006,0.81470529,118400.0,118390.0,0.36144]
[1753717777402,0.81470529,118400.0,118390.0,0.5303714]
[1753717778702,0.81470529,118400.0,118390.0,0.6435414]
[1753717779708,0.81470529,118400.0,118390.0,0.47461]
[1753717780802,0.81470529,118400.0,118390.0,0.40388]
[1753717781505,0.81470529,118400.0,118390.0,0.6435418]
[1753717781706,0.81470529,118400.0,118390.0,0.47461]
[1753717782209,1.24588797,118400.0,118390.0,0.04981]
[1753717782713,0.81470529,118400.0,118390.0,0.04981]
[1753717783311,0.81470529,118400.0,118390.0,0.20995]
[1753717783506,0.81470529,118400.0,118390.0,0.29071]
[1753717783706,0.81470529,118400.0,118390.0,0.6435418]
[1753717785309,0.81470529,118400.0,118390.0,0.84385448]
[1753717785505,0.51909079,118400.0,118390.0,1.50590716]
[1753717785810,0.68800849,118400.0,118390.0,1.07472448]
[1753717786912,0.01909079,118400.0,118390.0,1.07472448]
[1753717788213,0.18800849,118400.0,118390.0,1.07472448]
[1753717790008,0.18800849,118400.0,118390.0,0.47461]
[1753717790208,0.61919117,118400.0,118390.0,1.14961]
[1753717790512,0.61919117,118400.0,118390.0,0.47461]
[1753717790712,0.18800849,118400.0,118390.0,0.47461]
[1753717791215,0.18800849,118400.0,118390.0,0.6435422]
[1753717791913,0.20338849,118400.0,118390.0,0.6435422]
[1753717794813,0.63457117,118400.0,118390.0,0.6435422]
[1753717796012,0.20338849,118400.0,118390.0,0.6435422]
[1753717796318,0.70338849,118400.0,118390.0,0.6435422]
[1753717797712,1.13457117,118400.0,118390.0,0.1719322]
[1753717797913,1.80953117,118400.0,118390.0,0.5480722]
[1753717798119,1.80953117,118400.0,118390.0,0.6571822]
[1753717798815,1.80953117,118400.0,118390.0,0.48825]
[1753717799021,1.80953117,118400.0,118390.0,0.13261]
[1753717799416,1.80953117,118400.0,118390.0,0.05041]
[1753717799713,0.2206472,118380.0,118370.0,0.23872]
[1753717799912,0.75949067,118380.0,118370.0,0.36118]
[1753717800113,1.43445067,118380.0,118370.0,0.18872]
[1753717800319,1.43445067,118380.0,118370.0,0.3576816]
[1753717800621,1.43445067,118380.0,118370.0,0.6042116]
[1753717801119,1.43645067,118380.0,118370.0,0.6102116]
[1753717801619,1.50526799,118380.0,118370.0,0.6102116]
[1753717801819,1.50426799,118380.0,118370.0,0.6072116]
[1753717802022,1.50426799,118380.0,118370.0,0.6556216]
[1753717802520,1.50326799,118380.0,118370.0,0.6526216]
[1753717802720,1.50526799,118380.0,118370.0,0.6536216]
[1753717803520,1.50526799,118380.0,118370.0,0.48466]
[1753717803717,1.93645067,118380.0,118370.0,0.04941]
[1753717805219,1.93645067,118380.0,118370.0,0.002]
[1753717806923,0.2680066,118360.0,118350.0,0.2164009]
[1753717807126,1.39228007,118360.0,118350.0,0.2164009]
[1753717807721,1.39228007,118360.0,118350.0,0.3888609]
[1753717807922,1.39228007,118360.0,118350.0,0.5123009]
[1753717808317,1.39328007,118360.0,118350.0,0.002]
[1753717808523,0.2187251,118340.0,118330.0,0.6224455]
[1753717808822,1.32749778,118340.0,118330.0,0.23872]
[1753717809025,1.39088989,118340.0,118330.0,0.23872]
[1753717809625,1.43295218,118340.0,118330.0,0.20589]
[1753717809923,1.43295218,118340.0,118330.0,0.05341]
[1753717810128,1.39288989,118340.0,118330.0,0.05341]
[1753717810324,1.39288989,118340.0,118330.0,0.006]
[1753717810725,1.39288989,118340.0,118330.0,0.1750191]
[1753717810925,1.39288989,118340.0,118330.0,0.2224291]
[1753717811121,1.89288989,118340.0,118330.0,0.3948891]
[1753717811326,1.89288989,118340.0,118330.0,0.34931]
[1753717811727,1.89288989,118340.0,118330.0,0.27524]
[1753717811928,1.93490566,118340.0,118330.0,0.006]
[1753717813430,1.93490566,118340.0,118330.0,0.05341]
[1753717813633,1.93290566,118340.0,118330.0,0.04741]
[1753717813832,1.93490566,118340.0,118330.0,0.04941]
[1753717814233,1.89288989,118340.0,118330.0,0.6562693]
[1753717814426,1.46170721,118340.0,118330.0,1.08745198]
[1753717815124,1.46170721,118340.0,118330.0,0.6562693]
[1753717815528,1.89288989,118340.0,118330.0,0.48725]
[1753717816631,1.89288989,118340.0,118330.0,0.002]
[1753717818436,1.89288989,118340.0,118330.0,0.04941]
[1753717819237,1.89288989,118340.0,118330.0,0.002]
[1753717819540,1.89288989,118340.0,118330.0,0.22187]
[1753717819835,1.89288989,118340.0,118330.0,0.29594]
[1753717820224,1.89288989,118340.0,118330.0,0.22187]
[1753717820427,1.89288989,118340.0,118330.0,0.002]
[1753717822040,1.89288989,118340.0,118330.0,0.04941]
[1753717822741,1.89288989,118340.0,118330.0,0.002]
[1753717823045,1.46170721,118340.0,118330.0,0.002]
[1753717823241,1.89288989,118340.0,118330.0,0.002]
[1753717824038,0.215998,118310.0,118300.0,0.67506299]
[1753717824340,1.38631068,118310.0,118300.0,0.79192785]
[1753717824534,0.955128,118310.0,118300.0,0.79192785]
[1753717824739,0.955128,118310.0,118300.0,0.6806162]
[1753717824936,1.38631068,118310.0,118300.0,0.6806162]
[1753717826442,0.955128,118310.0,118300.0,0.6806162]
[1753717826942,0.912158,118310.0,118300.0,1.11179888]
[1753717827139,0.860288,118310.0,118300.0,1.11579888]
[1753717827440,0.861208,118310.0,118300.0,1.11579888]
[1753717828730,0.861208,118310.0,118300.0,1.18397239]
[1753717828934,0.861208,118310.0,118300.0,1.11579888]
[1753717829338,0.6932,118310.0,118300.0,1.11579888]
[1753717829738,0.002,118310.0,118300.0,1.11579888]
[1753717830337,0.01860205,118310.0,118300.0,1.11579888]
[1753717830641,0.002,118310.0,118300.0,1.11579888]
[1753717833046,0.1710484,118310.0,118300.0,1.11579888]
[1753717833348,0.1710484,118310.0,118300.0,1.18219224]
[1753717833536,0.002,118310.0,118300.0,1.18219224]
[1753717833847,0.1710484,118310.0,118300.0,1.18219224]
[1753717834446,0.2103184,118310.0,118300.0,1.18219224]
[1753717834650,0.2077284,118310.0,118300.0,1.87375224]
[1753717834940,0.65251108,118310.0,118300.0,0.75100956]
[1753717835145,0.2879676,118310.0,118300.0,0.6846162]
[1753717836249,0.2405576,118310.0,118300.0,0.6846162]
[1753717836551,0.2405576,118310.0,118300.0,1.11579888]
[1753717836748,0.1876876,118310.0,118300.0,1.11579888]
[1753717837442,0.2243676,118310.0,118300.0,1.11579888]
[1753717837657,0.2310976,118310.0,118300.0,1.11579888]
[1753717838750,0.2320976,118310.0,118300.0,1.11979888]
[1753717840253,0.2300976,118310.0,118300.0,1.11179888]
[1753717840952,0.2233676,118310.0,118300.0,1.11179888]
[1753717841253,0.1866876,118310.0,118300.0,1.11179888]
[1753717842251,0.1926076,118310.0,118300.0,1.11179888]
[1753717842948,0.2395576,118310.0,118300.0,0.6383515]
[1753717843153,0.71815028,118310.0,118300.0,0.6383628]
[1753717843853,0.2869676,118310.0,118300.0,0.6383628]
[1753717844250,0.2859676,118310.0,118300.0,0.6383628]
[1753717844450,0.2879676,118310.0,118300.0,0.6403628]
[1753717844853,0.71915028,118310.0,118300.0,0.6403628]
[1753717845055,0.71915028,118310.0,118300.0,0.6403639]
[1753717845257,0.71915028,118310.0,118300.0,0.4713]
[1753717845549,0.71915028,118310.0,118300.0,0.6403639]
[1753717846951,0.0449,118300.0,118280.0,0.0001]
[1753717847157,0.0449,118300.0,118240.0,0.04839]
[1753717847158,2.02239166,118290.0,118240.0,0.04839]
[1753717847452,0.1691354,118250.0,118240.0,0.30907]
[1753717847650,0.1691354,118250.0,118240.0,0.90940238]
[1753717847852,0.18619039,118250.0,118240.0,0.90940238]
[1753717848449,0.68619039,118250.0,118240.0,1.60228238]
[1753717848653,0.68719039,118250.0,118240.0,0.4792197]
[1753717848851,1.11837307,118250.0,118240.0,1.1722597]
[1753717849053,0.68719039,118250.0,118240.0,1.3324897]
[1753717849252,1.11837307,118250.0,118240.0,1.3324897]
[1753717849449,1.11837307,118250.0,118240.0,1.3327297]
[1753717849858,0.18719039,118250.0,118240.0,1.3327297]
[1753717851955,0.61837307,118250.0,118240.0,1.3327297]
[1753717852357,0.61937307,118250.0,118240.0,0.6394497]
[1753717852558,0.61937307,118250.0,118240.0,1.3326897]
[1753717853461,0.61937307,118250.0,118240.0,0.6394497]
[1753717853862,0.61937307,118250.0,118240.0,1.3329297]
[1753717854366,0.60231808,118250.0,118240.0,0.6394497]
[1753717854562,0.60231808,118250.0,118240.0,1.3329297]
[1753717857762,0.60231808,118250.0,118240.0,0.6394497]
[1753717857964,0.60231808,118250.0,118240.0,1.3353297]
[1753717858364,0.60191808,118250.0,118240.0,1.3353297]
[1753717858866,0.60191808,118250.0,118240.0,0.6394497]
[1753717859067,0.60191808,118250.0,118240.0,1.3349297]
[1753717859462,0.60151808,118250.0,118240.0,1.3349297]
[1753717860167,0.60111808,118250.0,118240.0,1.3349297]
[1753717860569,0.60111808,118250.0,118240.0,0.6394497]
[1753717860762,0.60071808,118250.0,118240.0,1.3349697]
[1753717861359,0.60071808,118250.0,118240.0,0.6568997]
[1753717863162,0.1685354,118250.0,118240.0,0.6558997]
[1753717863368,0.1685354,118250.0,118240.0,0.6568997]
[1753717863369,0.1705354,118250.0,118240.0,0.6568997]
[1753717863971,0.1705354,118250.0,118240.0,1.3578997]
[1753717864370,0.60171808,118250.0,118240.0,1.3578997]
[1753717864569,0.60271808,118250.0,118240.0,0.6568997]
[1753717864771,0.60271808,118250.0,118240.0,1.3586197]
[1753717865772,0.1715354,118250.0,118240.0,1.3586197]
[1753717866166,0.1715354,118250.0,118240.0,0.6568997]
[1753717866372,0.1715354,118250.0,118240.0,1.3588597]
[1753717866874,0.1715354,118250.0,118240.0,1.79004238]
[1753717867575,0.60271808,118250.0,118240.0,1.3588597]
[1753717869569,0.004,118250.0,118240.0,0.6568997]
[1753717869771,0.22838818,118260.0,118250.0,0.1691354]
[1753717869968,0.2283873,118260.0,118250.0,1.08756808]
[1753717870569,0.2283873,118260.0,118250.0,0.6563854]
[1753717871074,0.2323873,118260.0,118250.0,1.08856808]
[1753717871376,0.2353873,118260.0,118250.0,1.08856808]
[1753717873781,0.2353873,118260.0,118250.0,1.78976808]
[1753717874581,0.2353873,118260.0,118250.0,1.08856808]
[1753717875079,0.2353873,118260.0,118250.0,1.78932808]
[1753717875470,0.2353873,118260.0,118250.0,1.08856808]
[1753717875676,0.67295998,118260.0,118250.0,1.2890753]
[1753717875877,0.67695998,118260.0,118250.0,1.3579853]
[1753717876077,0.67695998,118260.0,118250.0,1.18917]
[1753717876278,0.2457773,118260.0,118250.0,1.3583054]
[1753717876478,0.2457773,118260.0,118250.0,1.18917]
[1753717876972,0.7457773,118260.0,118250.0,1.3583054]
[1753717877281,0.7457773,118260.0,118250.0,1.18917]
[1753717877478,0.7457773,118260.0,118250.0,1.3583054]
[1753717878187,0.7457773,118260.0,118250.0,1.18917]
[1753717878578,1.17695998,118260.0,118250.0,1.18917]
[1753717878783,0.7457773,118260.0,118250.0,1.78948808]
[1753717879180,0.7353873,118260.0,118250.0,1.78948808]
[1753717879483,0.19930949,118270.0,118250.0,1.78948808]
[1753717879484,0.19930949,118270.0,118250.0,1.58360038]
[1753717879678,0.19930949,118270.0,118260.0,0.6563711]
[1753717879679,0.37480629,118270.0,118260.0,0.6563711]
[1753717880480,0.37480629,118270.0,118260.0,0.67684704]
[1753717880679,0.80798897,118270.0,118260.0,0.67684704]
[1753717880979,0.87680629,118270.0,118260.0,0.67684704]
[1753717881178,0.87880629,118270.0,118260.0,1.38028704]
[1753717881382,1.30998897,118270.0,118260.0,1.38028704]
[1753717881586,1.30798897,118270.0,118260.0,1.38028704]
[1753717881891,1.31098897,118270.0,118260.0,1.38028704]
[1753717882379,0.82713619,118270.0,118260.0,1.81146972]
[1753717882579,0.7163835,118270.0,118260.0,1.81146972]
[1753717882878,0.0845485,118280.0,118260.0,1.81146972]
[1753717882879,0.1691035,118280.0,118270.0,0.1691068]
[1753717883086,0.1691035,118280.0,118270.0,1.08565542]
[1753717883678,0.1691035,118280.0,118270.0,1.15735732]
[1753717884283,0.1691035,118280.0,118270.0,1.12697918]
[1753717884480,0.1691035,118280.0,118270.0,0.6957965]
[1753717884683,0.1691035,118280.0,118270.0,1.12697918]
[1753717885382,0.1691035,118280.0,118270.0,1.14970932]
[1753717885785,0.1691035,118280.0,118270.0,1.85314932]
[1753717886674,0.1690925,118280.0,118270.0,1.97997322]
[1753717886881,0.1720925,118280.0,118270.0,1.98097322]
[1753717887278,0.003,118280.0,118270.0,1.98097322]
[1753717887585,0.1720925,118280.0,118270.0,1.98097322]
[1753717888179,0.1690925,118280.0,118270.0,1.97997322]
[1753717888485,0.1700925,118280.0,118270.0,1.93969732]
[1753717888686,0.1700925,118280.0,118270.0,1.23625732]
[1753717888882,0.3340825,118280.0,118270.0,1.93941732]
[1753717889183,0.3340825,118280.0,118270.0,1.94241732]
[1753717889786,0.1700925,118280.0,118270.0,1.94241732]
[1753717890188,0.4532987,118290.0,118270.0,1.66581732]
[1753717890387,0.8088269,118290.0,118280.0,0.89607268]
[1753717890586,0.8088269,118290.0,118280.0,0.91654862]
[1753717890787,0.8088269,118290.0,118280.0,1.08564112]
[1753717891389,0.8088269,118290.0,118280.0,1.08564102]
[1753717891588,0.82437262,118290.0,118280.0,1.78812102]
[1753717892390,0.82537262,118290.0,118280.0,1.79112102]
[1753717892886,0.82537262,118290.0,118280.0,1.62202862]
[1753717893189,0.82537262,118290.0,118280.0,1.79112102]
[1753717893986,0.82537048,118290.0,118280.0,1.79143846]
[1753717894187,0.82637048,118290.0,118280.0,1.79343846]
[1753717894388,0.73703778,118290.0,118280.0,1.79343846]
[1753717894589,0.42254778,118290.0,118280.0,1.79343846]
[1753717894986,0.42254778,118290.0,118280.0,1.79239846]
[1753717895186,0.7685542,118290.0,118280.0,1.79239846]
[1753717895391,0.7214942,118290.0,118280.0,1.79239846]
[1753717895586,0.2978942,118290.0,118280.0,1.79239846]
[1753717895894,0.2556215,118290.0,118280.0,1.79239846]
[1753717896093,0.2556215,118290.0,118280.0,1.81507213]
[1753717896288,0.58428619,118300.0,118290.0,0.4456781]
[1753717896494,0.71926448,118300.0,118290.0,1.08594416]
[1753717896693,0.76594448,118300.0,118290.0,1.08594416]
[1753717897294,0.29528448,118300.0,118290.0,1.08594416]
[1753717897497,0.45927448,118300.0,118290.0,1.08594416]
[1753717897799,1.09904448,118300.0,118290.0,1.08594416]
[1753717897998,1.17220448,118300.0,118290.0,1.08594416]
[1753717898199,1.21926448,118300.0,118290.0,1.08594416]
[1753717899004,1.22026448,118300.0,118290.0,1.08794416]
[1753717901394,1.22026448,118300.0,118290.0,1.08994416]
[1753717901594,0.09377738,118300.0,118290.0,1.08994416]
[1753717901796,0.2123301,118300.0,118290.0,1.08994416]
[1753717902299,0.28089891,118300.0,118290.0,1.08994416]
[1753717903000,0.2123301,118300.0,118290.0,1.08994416]
[1753717904706,0.2123301,118300.0,118290.0,1.11261783]
[1753717904899,0.2932301,118300.0,118290.0,1.11261783]
[1753717905099,0.5272401,118300.0,118290.0,1.11261783]
[1753717905300,0.5743001,118300.0,118290.0,1.81321783]
[1753717905902,0.5743001,118300.0,118290.0,1.38203515]
[1753717906104,1.00548278,118300.0,118290.0,0.04746705]
[1753717906309,1.00548278,118300.0,118290.0,0.77099338]
[1753717906705,1.07422079,118300.0,118290.0,0.93022338]
[1753717906907,1.57422079,118300.0,118290.0,0.93022338]
[1753717907107,1.57422079,118300.0,118290.0,0.07126158]
[1753717907306,1.57422079,118300.0,118290.0,0.77194158]
[1753717908708,1.57422079,118300.0,118290.0,0.07126158]
[1753717908911,1.57422079,118300.0,118290.0,0.77150158]
[1753717909408,1.57422079,118300.0,118290.0,0.07126158]
[1753717909611,1.57422079,118300.0,118290.0,0.77126158]
[1753717909812,1.57422079,118300.0,118290.0,0.09395935]
[1753717910008,1.57422079,118300.0,118290.0,0.72558158]
[1753717912014,1.57422079,118300.0,118290.0,0.02566158]
[1753717912709,1.57422079,118300.0,118290.0,0.07179158]
[1753717913312,1.57422079,118300.0,118290.0,0.24086968]
[1753717913313,1.52716079,118300.0,118290.0,0.24086968]
[1753717913513,1.09597811,118300.0,118290.0,1.18851158]
[1753717913821,1.09597811,118300.0,118290.0,0.72566158]
[1753717913822,1.58825863,118300.0,118290.0,0.72566158]
[1753717914212,1.58825863,118300.0,118290.0,0.77179158]
[1753717914614,1.58825863,118300.0,118290.0,0.07179158]
[1753717917223,2.28789863,118300.0,118290.0,0.48851158]
[1753717918318,1.58825863,118300.0,118290.0,0.48851158]
[1753717918518,2.28761863,118300.0,118290.0,0.48851158]
[1753717918718,2.28761863,118300.0,118290.0,0.41550158]
[1753717919520,2.28761863,118300.0,118290.0,0.48851158]
[1753717920719,2.28761863,118300.0,118290.0,0.41550158]
[1753717920930,2.28761863,118300.0,118290.0,0.48851158]
[1753717921619,1.58825863,118300.0,118290.0,0.48851158]
[1753717921817,2.28705863,118300.0,118290.0,0.48851158]
[1753717923614,2.24069863,118300.0,118290.0,0.65758928]
[1753717923821,0.90736595,118300.0,118290.0,1.08877196]
[1753717924133,0.72706794,118300.0,118290.0,1.08877196]
[1753717924519,0.72706794,118300.0,118290.0,1.11146973]
[1753717925622,0.22706794,118300.0,118290.0,1.11146973]
[1753717927021,0.22702288,118300.0,118290.0,1.81047833]
[1753717929030,0.01569278,118300.0,118290.0,1.81047833]
[1753717929225,0.18475548,118300.0,118290.0,1.81047833]
[1753717931628,0.18475548,118300.0,118290.0,1.81811259]
[1753717931829,0.1700627,118300.0,118290.0,1.8330225]
[1753717932329,0.1700627,118300.0,118290.0,1.86333554]
[1753717932628,0.1700627,118300.0,118290.0,1.8330225]
[1753717933123,0.001,118300.0,118290.0,1.8330225]
[1753717934225,0.253588,118310.0,118300.0,0.5819638]
[1753717934426,0.26754599,118310.0,118300.0,1.08791606]
[1753717935228,0.18301719,118310.0,118300.0,1.08791606]
[1753717935830,0.18301719,118310.0,118300.0,1.08891606]
[1753717936032,0.1690592,118310.0,118300.0,1.06719084]
[1753717936931,0.1690592,118310.0,118300.0,1.06619084]
[1753717937133,0.1700592,118310.0,118300.0,1.06819084]
[1753717937831,0.1700592,118310.0,118300.0,1.06919084]
[1753717938131,0.1700592,118310.0,118300.0,1.09188682]
[1753717938333,0.001,118310.0,118300.0,1.09188682]
[1753717938631,0.001,118310.0,118300.0,1.23824684]
[1753717938826,0.001,118310.0,118300.0,1.48824684]
[1753717939032,0.1690341,118320.0,118310.0,0.3263277]
[1753717939229,0.18300717,118320.0,118310.0,1.73648967]
[1753717939434,0.22936717,118320.0,118310.0,1.73648967]